bitfinex/quotes_SOLUSD_20250123
["timestamp","ask_amount","ask_price","bid_price","bid_amount"]
[1737620474679,6.8572,248.15,248.13,0.063]
[1737620475482,7.8572,248.15,248.13,0.063]
[1737620475681,6.8572,248.15,248.13,0.063]
[1737620476283,24.776884,248.14,248.13,0.063]
[1737620476590,28.806784,248.14,248.13,0.063]
[1737620476776,29.806784,248.14,248.13,0.063]
[1737620477189,20.0,248.1,248.07,0.12]
[1737620477504,43.776884,248.08,248.07,0.12]
[1737620477803,45.471384,248.08,248.07,0.12]
[1737620478388,49.502284,248.08,248.07,0.12]
[1737620482583,21.6945,248.08,248.07,0.12]
[1737620482912,4.0307,248.1,248.07,0.12]
[1737620483801,11.8746,248.14,248.07,0.12]
[1737620483802,5.8298,248.14,248.07,0.12]
[1737620483984,6.8572,248.15,248.07,0.12]
[1737620484184,20.0,248.12,248.07,0.12]
[1737620484996,24.0303,248.12,248.07,0.12]
[1737620485295,4.0303,248.12,248.07,0.12]
[1737620486010,20.0,248.11,248.07,0.12]
[1737620486605,4.0306,248.1,248.07,0.12]
[1737620487786,81.5,248.08,248.07,0.12]
[1737620489010,85.5309,248.08,248.07,0.12]
[1737620490509,29.607484,248.08,248.07,0.183]
[1737620490712,29.607484,248.08,248.07,0.0001]
[1737620491009,23.776884,248.03,247.94,0.24]
[1737620491694,20.0,248.05,247.94,0.24]
[1737620492014,20.0,248.05,247.94,4.2731]
[1737620492308,20.0,248.04,247.94,0.24]
[1737620492512,4.0317,248.03,247.94,0.24]
[1737620493316,27.808584,248.03,247.94,0.24]
[1737620494308,23.776884,248.02,247.94,0.24]
[1737620494814,27.808584,248.03,247.94,0.24]
[1737620495900,20.0,248.0,247.94,0.24]
[1737620496892,27.808584,248.03,247.94,0.24]
[1737620496893,20.0,247.95,247.94,0.24]
[1737620497208,43.776884,247.95,247.91,0.063]
[1737620497410,20.0,247.96,247.91,0.063]
[1737620497710,21.0,247.96,247.91,0.063]
[1737620498211,43.776884,247.92,247.91,0.063]
[1737620498392,20.0,247.88,247.82,0.063]
[1737620498708,23.776884,247.87,247.82,0.063]
[1737620498891,20.0,247.84,247.82,0.063]
[1737620499309,4.0345,247.86,247.82,0.063]
[1737620499803,23.776884,247.85,247.82,0.063]
[1737620500114,8.0143,247.88,247.82,0.063]
[1737620500312,20.0,247.85,247.82,0.063]
[1737620500892,3.98,247.88,247.82,0.063]
[1737620502910,24.0344,247.87,247.82,0.063]
[1737620503129,20.0,247.87,247.82,0.063]
[1737620503425,20.0,247.85,247.82,0.063]
[1737620503592,4.0344,247.87,247.82,0.063]
[1737620504207,20.0,247.85,247.82,0.063]
[1737620504714,3.98,247.88,247.82,0.063]
[1737620505301,23.98,247.88,247.82,0.063]
[1737620505713,20.0,247.87,247.82,0.063]
[1737620506096,81.5,247.89,247.82,0.063]
[1737620506324,81.5,247.89,247.82,4.0981]
[1737620506529,81.5,247.89,247.82,0.063]
[1737620506818,85.5341,247.89,247.82,0.063]
[1737620508413,23.776884,247.88,247.82,0.063]
[1737620509821,81.5,247.84,247.82,0.063]
[1737620510123,81.5,247.83,247.82,0.063]
[1737620510619,85.535,247.83,247.82,0.063]
[1737620514610,23.776884,247.84,247.82,0.063]
[1737620515107,20.0,247.84,247.82,0.063]
[1737620515837,43.776884,247.83,247.82,0.063]
[1737620516822,47.811884,247.83,247.82,0.063]
[1737620517020,4.035,247.83,247.82,0.063]
[1737620518221,24.035,247.83,247.82,0.063]
[1737620518619,20.0,247.83,247.82,0.063]
[1737620518918,4.0338,247.9,247.82,0.063]
[1737620519311,20.0,247.88,247.82,0.063]
[1737620519621,4.0338,247.9,247.82,0.063]
[1737620520521,20.0,247.88,247.82,0.063]
[1737620520721,4.0343,247.87,247.82,0.063]
[1737620520926,43.776884,247.86,247.82,0.063]
[1737620521225,20.0,247.83,247.82,0.063]
[1737620521625,20.0,247.84,247.82,0.063]
[1737620522621,24.035,247.83,247.82,0.063]
[1737620523808,47.811884,247.83,247.82,0.063]
[1737620524157,20.0,247.75,247.65,13.48618221]
[1737620524912,20.0,247.75,247.65,1.7564]
[1737620525222,23.776884,247.74,247.65,1.7564]
[1737620525430,3.98,247.76,247.65,1.7564]
[1737620525807,20.0,247.72,247.65,1.7564]
[1737620527025,23.776884,247.71,247.61,11.72978221]
[1737620527233,14.1276,247.74,247.61,11.72978221]
[1737620527403,20.0,247.71,247.61,11.72978221]
[1737620527833,4.0371,247.7,247.61,11.72978221]
[1737620528221,24.0371,247.7,247.59,15.76868221]
[1737620528811,20.0,247.66,247.59,11.72978221]
[1737620529009,20.0,247.66,247.57,13.66028221]
[1737620529341,20.0,247.61,247.57,0.063]
[1737620529630,3.98,247.6,247.57,0.063]
[1737620530007,8.0187,247.6,247.57,0.063]
[1737620530309,23.776884,247.59,247.57,0.063]
[1737620530524,20.0,247.58,247.57,0.063]
[1737620530921,8.0187,247.6,247.57,0.063]
[1737620530922,3.98,247.6,247.57,0.063]
[1737620531430,4.0381,247.64,247.57,0.063]
[1737620531637,8.0177,247.67,247.57,0.063]
[1737620532032,8.0177,247.67,247.57,1.9305]
[1737620532218,8.0177,247.67,247.57,17.69948221]
[1737620532412,3.98,247.67,247.57,17.69948221]
[1737620532809,8.0176,247.67,247.57,17.69948221]
[1737620534157,2.7904,247.75,247.59,11.72978221]
[1737620534158,3.98,247.72,247.59,11.72978221]
[1737620534339,3.98,247.72,247.61,11.72978221]
[1737620534833,23.776884,247.71,247.57,1.9305]
[1737620535039,20.0,247.68,247.57,1.9305]
[1737620535336,23.776884,247.67,247.57,1.9305]
[1737620535632,20.0,247.64,247.57,1.9305]
[1737620536040,4.0382,247.63,247.57,1.9305]
[1737620536227,4.0382,247.63,247.57,0.063]
[1737620536228,23.776884,247.62,247.57,0.063]
[1737620536433,14.1339,247.63,247.57,0.063]
[1737620537436,23.776884,247.62,247.57,0.063]
[1737620537830,24.0382,247.63,247.57,0.063]
[1737620538144,24.0382,247.63,247.61,0.063]
[1737620539443,20.0,247.62,247.61,0.063]
[1737620540120,24.0382,247.63,247.61,0.063]
[1737620540517,20.0,247.62,247.61,0.063]
[1737620542238,4.0382,247.63,247.61,0.063]
[1737620542641,4.0369,247.71,247.61,0.063]
[1737620543049,4.0369,247.71,247.61,18.8573018]
[1737620543233,4.0369,247.71,247.62,1.8485]
[1737620543632,4.0369,247.71,247.62,5.8869]
[1737620544152,20.0,247.69,247.62,1.8485]
[1737620544443,4.0369,247.71,247.62,1.8485]
[1737620544646,4.0369,247.71,247.62,5.8869]
[1737620544836,4.0369,247.71,247.63,18.7943018]
[1737620545224,4.0369,247.71,247.62,1.8485]
[1737620547222,14.1293,247.71,247.62,1.8485]
[1737620547428,23.776884,247.68,247.61,0.063]
[1737620548325,20.0,247.66,247.61,0.063]
[1737620549350,24.0379,247.65,247.61,0.063]
[1737620550243,4.0379,247.65,247.61,0.063]
[1737620550544,24.0379,247.65,247.61,0.063]
[1737620550853,20.0,247.62,247.61,0.063]
[1737620551549,81.5,247.69,247.61,0.063]
[1737620551724,5.8507,247.72,247.61,0.063]
[1737620551933,6.9419,247.75,247.62,1.8485]
[1737620551934,4.0364,247.74,247.62,1.8485]
[1737620552330,20.0,247.72,247.62,1.8485]
[1737620552557,4.0364,247.74,247.62,1.8485]
[1737620552852,20.0,247.71,247.62,1.8485]
[1737620553441,20.0,247.7,247.61,0.063]
[1737620553663,4.0373,247.69,247.61,0.063]
[1737620557158,24.0371,247.71,247.61,4.1015]
[1737620557356,24.0371,247.71,247.61,22.8958018]
[1737620557652,24.0371,247.71,247.61,4.1015]
[1737620557845,4.0371,247.71,247.61,15.84058528]
[1737620558446,4.0364,247.74,247.61,15.84058528]
[1737620558736,20.0,247.72,247.61,11.80208528]
[1737620559252,4.0364,247.74,247.61,15.84048528]
[1737620559253,20.0,247.73,247.61,15.84048528]
[1737620559466,20.0,247.71,247.61,11.80208528]
[1737620559671,20.0,247.69,247.61,0.063]
[1737620560262,20.0,247.71,247.61,0.063]
[1737620560459,4.0371,247.7,247.61,0.063]
[1737620562862,4.0371,247.7,247.61,15.84058528]
[1737620563184,4.0371,247.7,247.61,327.84058528]
[1737620563343,4.0371,247.7,247.63,11.73908528]
[1737620563544,8.016,247.77,247.65,11.73908528]
[1737620563756,8.016,247.77,247.66,1.797]
[1737620564144,20.0,247.74,247.66,1.797]
[1737620565277,20.0,247.75,247.66,1.797]
[1737620565443,20.0,247.74,247.66,1.797]
[1737620567469,4.0366,247.73,247.66,1.797]
[1737620572066,24.0365,247.74,247.66,1.797]
[1737620574399,24.0365,247.74,247.66,1.86]
[1737620577180,4.0358,247.78,247.7,11.73908528]
[1737620577382,81.5,247.88,247.72,11.73908528]
[1737620577580,4.0653,247.82,247.72,11.73908528]
[1737620577787,14.1532,247.82,247.7,11.73908528]
[1737620578787,10.1179,247.82,247.7,11.73908528]
[1737620579365,10.1179,247.82,247.68,11.73908528]
[1737620580272,10.1179,247.82,247.7,312.0]
[1737620580480,10.1179,247.82,247.72,11.73908528]
[1737620580481,0.03,247.82,247.72,11.73908528]
[1737620580872,4.0651,247.82,247.72,11.73908528]
[1737620581362,0.03,247.82,247.74,11.73908528]
[1737620581562,0.03,247.82,247.72,4.0367]
[1737620581563,0.03,247.82,247.76,13.53608528]
[1737620581782,0.03,247.82,247.78,11.73908528]
[1737620582362,0.03,247.82,247.76,13.53608528]
[1737620582563,0.03,247.82,247.76,1.797]
[1737620583285,0.03,247.82,247.76,13.53608528]
[1737620583676,0.03,247.82,247.76,17.57218528]
[1737620583865,0.03,247.82,247.8,11.73908528]
[1737620584986,0.03,247.82,247.8,15.77448528]
[1737620585992,0.03,247.82,247.81,1.0]
[1737620586192,0.03,247.91,247.82,25.641784]
[1737620586402,0.03,247.91,247.89,11.73908528]
[1737620587092,0.03,247.91,247.89,15.77298528]
[1737620588277,0.03,247.91,247.9,1.8649]
[1737620588870,4.0317,248.03,247.9,1.8649]
[1737620588871,4.0317,248.03,247.91,23.776884]
[1737620589093,4.0315,248.05,247.97,11.73908528]
[1737620589969,4.0611,248.07,247.97,11.73908528]
[1737620590373,4.0611,248.07,247.99,11.73908528]
[1737620590595,14.1389,248.07,247.95,11.73908528]
[1737620590897,14.1389,248.07,247.93,11.73908528]
[1737620591096,20.0,248.04,247.93,11.73908528]
[1737620591399,20.0,248.04,247.93,323.73908528]
[1737620591602,20.0,248.04,247.93,11.73908528]
[1737620591973,4.0317,248.03,247.93,11.73908528]
[1737620592597,0.03,248.07,247.95,11.73908528]
[1737620592768,4.0315,248.05,247.95,11.73908528]
[1737620592967,4.0315,248.05,247.97,11.73908528]
[1737620593186,24.0315,248.05,247.97,11.73908528]
[1737620593585,24.0315,248.05,247.95,11.73908528]
[1737620596097,0.03,248.07,247.97,11.73908528]
[1737620596098,4.0612,248.07,247.97,11.73908528]
[1737620597099,20.0,248.05,247.93,11.73908528]
[1737620597289,20.0,248.05,247.91,11.73908528]
[1737620597491,20.0,248.05,247.95,11.73908528]
[1737620597881,4.0612,248.07,247.95,11.73908528]
[1737620598081,14.139,248.07,247.95,11.73908528]
[1737620598292,20.0,248.04,247.95,11.73908528]
[1737620598785,20.0,248.04,247.93,11.73908528]
[1737620599205,20.0,248.04,247.91,11.73908528]
[1737620599587,20.0,248.04,247.91,11.80208528]
[1737620599780,20.0,248.0,247.91,0.063]
[1737620600288,20.0,248.0,247.91,11.80208528]
[1737620600478,4.0324,247.99,247.91,11.80208528]
[1737620603579,4.0324,247.99,247.91,15.83578528]
[1737620603800,81.5,248.04,247.93,11.73908528]
[1737620603985,81.5,248.04,247.91,4.0967]
[1737620603986,4.0319,248.03,247.95,11.73908528]
[1737620604585,4.0319,248.03,247.93,11.73908528]
[1737620604796,20.0,248.01,247.93,11.73908528]
[1737620604977,20.0,248.01,247.91,11.80208528]
[1737620605179,20.0,248.0,247.91,0.063]
[1737620605687,24.0324,247.99,247.91,0.063]
[1737620606403,20.0,247.97,247.91,0.063]
[1737620606917,14.1134,247.99,247.91,0.063]
[1737620607410,20.0,247.96,247.91,0.063]
[1737620607611,4.033,247.95,247.91,0.063]
[1737620611300,24.0324,247.99,247.91,0.063]
[1737620611480,20.0,247.97,247.91,0.063]
[1737620611890,24.0328,247.97,247.91,0.063]
[1737620613908,4.0328,247.97,247.91,0.063]
[1737620614301,24.0328,247.97,247.91,0.063]
[1737620614810,34.1146,247.97,247.91,0.063]
[1737620615704,20.0,247.94,247.91,0.063]
[1737620616905,20.0,247.93,247.91,0.063]
[1737620617110,20.0,247.92,247.91,0.063]
[1737620617415,43.776884,247.92,247.91,0.063]
[1737620618701,47.810384,247.92,247.91,0.063]
[1737620619717,47.810384,247.92,247.78,11.73908528]
[1737620619718,20.0,247.88,247.78,11.73908528]
[1737620619897,20.0,247.88,247.76,11.80208528]
[1737620620097,20.0,247.88,247.76,15.83818528]
[1737620620418,20.0,247.88,247.78,11.73908528]
[1737620620623,20.0,247.88,247.8,11.73908528]
[1737620620823,20.0,247.88,247.78,11.73908528]
[1737620621510,4.0343,247.87,247.78,11.73908528]
[1737620621717,4.0343,247.87,247.78,15.77488528]
[1737620622814,20.0,247.88,247.78,15.77488528]
[1737620624248,24.0342,247.88,247.78,15.77488528]
[1737620624393,24.0342,247.88,247.8,11.73908528]
[1737620624994,4.0342,247.88,247.8,11.73908528]
[1737620625301,24.0342,247.88,247.8,11.73908528]
[1737620627916,24.0342,247.88,247.8,15.77458528]
[1737620630428,83.2241,247.91,247.82,11.73908528]
[1737620630736,85.5337,247.91,247.84,11.73908528]
[1737620631039,85.5337,247.91,247.82,11.73908528]
[1737620631406,1.7241,247.97,247.89,11.73908528]
[1737620632419,1.7241,247.97,247.89,15.77298528]
[1737620634538,5.7568,247.97,247.89,4.0339]
[1737620634912,20.0,247.96,247.89,4.0339]
[1737620636742,1.7241,247.97,247.89,4.0339]
[1737620637439,1.7241,247.97,247.89,15.77298528]
[1737620637811,5.7568,247.97,247.89,15.77298528]
[1737620638015,5.7568,247.97,247.89,11.73908528]
[1737620638935,5.7568,247.97,247.89,15.77308528]
[1737620639442,20.0,247.98,247.89,15.77308528]
[1737620640124,20.0,247.98,247.91,11.73908528]
[1737620640325,7.1111,248.01,247.93,11.73908528]
[1737620640911,81.5,248.02,247.93,11.73908528]
[1737620641112,81.5,248.02,247.94,4.0332]
[1737620641826,85.5319,248.02,247.94,4.0332]
[1737620642230,85.5319,248.02,247.93,11.73908528]
[1737620642534,85.5319,248.02,247.93,15.77238528]
[1737620643245,85.5319,248.02,247.93,11.73908528]
[1737620643533,85.5319,248.02,247.91,15.77268528]
[1737620644329,85.5319,248.02,247.88,312.0]
[1737620644330,20.0,247.99,247.89,11.73908528]
[1737620644637,81.5,247.98,247.87,11.73908528]
[1737620645340,4.0327,247.97,247.87,15.77328528]
[1737620647535,20.0,247.89,247.8,0.063]
[1737620648315,20.0,247.89,247.87,0.063]
[1737620649136,4.0342,247.88,247.87,0.063]
[1737620652743,20.0,247.89,247.87,0.063]
[1737620653739,85.5336,247.92,247.87,0.063]
[1737620654540,81.5,247.92,247.87,0.063]
[1737620654836,1.7008,247.93,247.87,0.063]
[1737620654837,7.2832,247.96,247.88,20.0]
[1737620655041,8.0125,247.99,247.87,16.83638528]
[1737620655348,1.7008,248.01,247.93,11.73908528]
[1737620655523,5.7329,248.01,247.89,11.73908528]
[1737620656040,5.7329,248.01,247.91,11.73908528]
[1737620656749,5.7329,248.01,247.91,15.77268528]
[1737620656750,4.0321,248.01,247.91,15.77268528]
[1737620661150,4.0321,248.01,247.89,11.73908528]
[1737620661921,4.0621,248.01,247.89,11.73908528]
[1737620662456,4.0621,248.01,247.89,15.77308528]
[1737620663447,0.03,248.01,247.91,11.73908528]
[1737620663649,0.03,248.01,247.96,11.73908528]
[1737620663839,0.03,248.01,247.98,11.73908528]
[1737620664329,0.03,248.01,248.0,11.73908528]
[1737620665746,0.03,248.01,248.0,15.77128528]
[1737620666458,0.03,248.01,247.98,11.73908528]
[1737620667323,0.03,248.01,247.98,323.73908528]
[1737620667524,0.03,248.01,247.98,327.77148528]
[1737620668249,0.03,248.01,248.0,11.73908528]
[1737620669850,0.03,248.01,248.0,15.77128528]
[1737620672027,0.03,248.07,248.0,39.54816928]
[1737620672224,0.03,248.07,248.06,11.73908528]
[1737620673035,0.03,248.07,248.06,15.77028528]
[1737620673542,0.03,248.11,248.07,23.776884]
[1737620673745,0.03,248.11,248.1,11.73908528]
[1737620673948,0.03,248.11,248.1,12.34352051]
[1737620674133,0.03,248.16,248.1,36.12040451]
[1737620674339,0.03,248.16,248.15,11.73908528]
[1737620675131,0.03,248.16,248.15,15.76888528]
[1737620678055,0.03,248.16,248.15,327.76888528]
[1737620679551,0.03,248.16,248.15,40.54576928]
[1737620679757,0.03,248.22,248.18,20.0]
[1737620679937,0.03,248.22,248.21,11.73908528]
[1737620680442,0.03,248.22,248.21,37.12011384]
[1737620680852,0.03,248.26,248.24,23.776884]
[1737620681045,0.03,248.26,248.25,11.73908528]
[1737620681265,0.03,248.26,248.25,35.51596928]
[1737620681636,0.03,248.26,248.25,39.54406928]
[1737620682561,0.03,248.26,248.25,351.54406928]
[1737620683765,0.03,248.31,248.28,20.0]
[1737620683969,0.03,248.31,248.3,11.73908528]
[1737620684960,0.03,248.31,248.3,39.54326928]
[1737620685373,0.03,248.31,248.3,40.54326928]
[1737620687963,0.03,248.31,248.3,352.54326928]
[1737620688671,0.03,248.31,248.3,328.76638528]
[1737620688875,0.03,248.31,248.3,15.76638528]
[1737620691056,0.03,248.31,248.3,11.73908528]
[1737620692970,0.03,248.31,248.28,11.73908528]
[1737620693173,0.03,248.31,248.26,11.73908528]
[1737620695477,0.03,248.31,248.24,11.73908528]
[1737620695658,0.03,248.31,248.22,11.73908528]
[1737620697072,4.0572,248.31,248.2,11.73908528]
[1737620697575,4.0572,248.31,248.22,11.73908528]
[1737620697954,4.0572,248.31,248.22,11.80208528]
[1737620698684,81.5,248.3,248.22,11.80208528]
[1737620698883,4.0275,248.29,248.22,0.063]
[1737620699090,81.5,248.28,248.22,0.063]
[1737620699770,81.5,248.25,248.22,0.063]
[1737620699973,20.0,248.23,248.22,0.063]
[1737620701067,24.0285,248.23,248.22,0.063]
[1737620702582,13.3823,248.26,248.22,0.063]
[1737620704072,20.0,248.23,248.22,0.063]
[1737620705870,24.0285,248.23,248.22,0.063]
[1737620706683,20.0,248.23,248.22,0.063]
[1737620706886,4.0283,248.25,248.22,0.063]
[1737620707284,20.0,248.23,248.22,0.063]
[1737620707884,4.0283,248.25,248.22,0.063]
[1737620708282,9.3542,248.26,248.22,0.063]
[1737620708475,7.4832,248.26,248.22,11.80208528]
[1737620708685,7.4832,248.26,248.22,15.83068528]
[1737620709192,7.4832,248.26,248.22,0.063]
[1737620709893,7.5132,248.26,248.22,0.063]
[1737620714909,11.5413,248.26,248.22,0.063]
[1737620716500,7.5132,248.26,248.22,0.063]
[1737620716806,0.03,248.26,248.24,11.73908528]
[1737620719110,0.03,248.26,248.25,4.0281]
[1737620721515,0.03,248.26,248.24,323.73908528]
[1737620721688,0.03,248.26,248.24,327.76728528]
[1737620722008,0.03,248.26,248.24,15.83028528]
[1737620723208,0.03,248.26,248.25,23.776884]
[1737620724215,0.0001,248.26,248.25,25.540484]
[1737620724418,0.0001,248.26,248.25,38.27956928]
[1737620724604,0.03,248.32,248.31,35.51596928]
[1737620725106,0.03,248.32,248.31,348.11981611]
[1737620725315,0.03,248.32,248.31,347.51596928]
[1737620725617,0.03,248.32,248.31,35.51596928]
[1737620726510,0.03,248.32,248.31,39.54316928]
[1737620727814,0.03,248.32,248.29,11.73908528]
[1737620728195,0.03,248.32,248.25,15.76718528]
[1737620728520,0.03,248.32,248.25,11.73908528]
[1737620729292,0.03,248.32,248.24,0.063]
[1737620729699,28.6192,248.31,248.24,0.063]
[1737620730317,20.0,248.27,248.24,0.063]
[1737620731824,24.028,248.27,248.24,0.063]
[1737620732721,20.0,248.26,248.24,0.063]
[1737620734399,85.5276,248.29,248.24,0.063]
[1737620734822,20.0,248.26,248.24,0.063]
[1737620735028,85.5276,248.29,248.24,0.063]
[1737620737725,125.276884,248.25,248.24,0.063]
[1737620739626,129.304984,248.25,248.24,0.063]
[1737620741725,105.5281,248.25,248.24,0.063]
[1737620741934,101.5,248.25,248.24,0.063]
[1737620743128,81.5,248.25,248.24,0.063]
[1737620749533,85.5281,248.25,248.24,0.063]
[1737620749739,81.5,248.25,248.24,0.063]
[1737620755756,81.5,248.3,248.24,11.80208528]
[1737620755945,81.5,248.3,248.28,11.73908528]
[1737620756254,0.03,248.31,248.28,11.73908528]
[1737620756447,0.03,248.31,248.3,11.73908528]
[1737620757234,0.03,248.31,248.3,15.76638528]
[1737620758842,0.03,248.31,248.3,11.73908528]
[1737620762947,0.03,248.31,248.28,11.73908528]
[1737620764848,0.03,248.31,248.3,11.73908528]
[1737620771258,0.03,248.31,248.26,11.73908528]
[1737620774962,81.53,248.31,248.24,11.80208528]
[1737620777161,81.5,248.29,248.24,0.063]
[1737620778361,4.0277,248.28,248.24,0.063]
[1737620780243,81.5,248.29,248.24,11.80208528]
[1737620781664,81.5,248.29,248.26,11.73908528]
[1737620782163,0.03,248.31,248.26,15.76698528]
[1737620784268,0.03,248.31,248.26,11.73908528]
[1737620784868,0.03,248.31,248.28,312.0]
[1737620787973,81.5,248.3,248.24,7.53664376]
[1737620788170,81.5,248.3,248.24,0.063]
[1737620789264,81.5,248.3,248.24,11.56494376]
[1737620789459,81.5,248.3,248.24,7.53664376]
[1737620789655,81.5,248.3,248.24,0.063]
[1737620790369,85.5273,248.3,248.24,0.063]
[1737620793760,81.5,248.29,248.24,0.063]
[1737620794165,81.5,248.25,248.24,0.063]
[1737620795160,8.3834,248.25,248.24,0.063]
[1737620795566,12.4115,248.25,248.24,0.063]
[1737620797284,36.188384,248.25,248.24,0.063]
[1737620800875,8.3834,248.25,248.24,0.063]
[1737620801588,6.6936,248.25,248.24,0.063]
[1737620802092,4.0275,248.29,248.24,0.063]
[1737620802989,20.0,248.27,248.24,0.063]
[1737620804691,4.0277,248.28,248.24,0.063]
[1737620805192,20.0,248.27,248.24,0.063]
[1737620806867,20.0,248.29,248.24,0.063]
[1737620807075,4.0275,248.29,248.24,0.063]
[1737620807273,1.8104,248.3,248.24,0.063]
[1737620807274,20.0,248.28,248.24,0.063]
[1737620807475,20.0,248.27,248.24,0.063]
[1737620809691,5.8378,248.3,248.24,0.063]
[1737620809870,81.5,248.28,248.24,0.063]
[1737620811482,85.5277,248.28,248.24,0.063]
[1737620815093,81.5,248.28,248.24,0.063]
[1737620815395,81.5,248.28,248.26,7.47520982]
[1737620817486,81.5,248.28,248.24,7.53820982]
[1737620820676,81.5,248.28,248.24,0.063]
[1737620821592,81.5,248.28,248.24,7.53820982]
[1737620822399,85.5278,248.28,248.24,0.063]
[1737620826711,81.5,248.27,248.24,0.063]
[1737620827501,85.5279,248.27,248.24,0.063]
[1737620828902,4.0281,248.25,248.24,0.063]
[1737620833804,24.0281,248.25,248.24,0.063]
[1737620834107,27.9681,248.25,248.24,0.063]
[1737620836708,52.744984,248.25,248.22,0.063]
[1737620837411,34.417284,248.23,248.22,0.0001]
[1737620837602,34.417284,248.23,248.03,0.063]
[1737620837603,20.0,248.2,248.09,7.47520982]
[1737620837911,20.0,248.2,248.11,7.47520982]
[1737620839115,4.0291,248.19,248.11,7.47520982]
[1737620840110,81.5,248.19,248.15,7.47520982]
[1737620844434,81.5,248.19,248.17,7.47520982]
[1737620844732,81.5,248.27,248.18,23.776884]
[1737620844914,81.5,248.27,248.24,7.47520982]
[1737620845216,81.5,248.27,248.22,7.47520982]
[1737620846324,81.5,248.27,248.24,7.47520982]
[1737620847607,81.5,248.27,248.22,11.50370982]
[1737620849530,81.53,248.27,248.22,11.50370982]
[1737620849705,0.03,248.27,248.26,7.47520982]
[1737620851626,0.03,248.27,248.26,31.25209382]
[1737620851931,0.03,248.27,248.26,35.28009382]
[1737620852134,0.03,248.27,248.26,35.88409313]
[1737620853006,0.03,248.31,248.3,7.47520982]
[1737620854321,0.03,248.31,248.3,35.27939382]
[1737620854920,0.03,248.31,248.3,35.88325464]
[1737620855240,0.03,248.36,248.31,23.776884]
[1737620855410,0.03,248.36,248.35,31.25209382]
[1737620856638,0.03,248.36,248.35,35.27859382]
[1737620858235,0.03,248.36,248.35,4.0265]
[1737620860836,0.03,248.36,248.35,27.803384]
[1737620861038,0.03,248.36,248.35,28.4072429]
[1737620861244,0.03,248.36,248.35,340.4072429]
[1737620861439,0.03,248.36,248.35,339.803384]
[1737620864346,0.03,248.36,248.35,27.803384]
[1737620864513,0.03,248.36,248.35,28.40709778]
[1737620865542,0.03,248.36,248.35,4.0265]
[1737620865922,0.03,248.36,248.35,27.803384]
[1737620866120,0.03,248.36,248.35,4.0265]
[1737620866547,0.03,248.36,248.33,4.0267]
[1737620867244,0.03,248.36,248.34,23.776884]
[1737620867744,0.03,248.36,248.27,4.0908]
[1737620867941,0.03,248.36,248.32,7.47520982]
[1737620868847,0.03,248.36,248.33,23.776884]
[1737620869933,0.03,248.36,248.27,11.1326]
[1737620869934,0.03,248.36,248.3,7.47520982]
[1737620870135,0.03,248.36,248.28,11.50290982]
[1737620870645,0.03,248.36,248.29,23.776884]
[1737620873045,0.03,248.36,248.29,27.804384]